fUST/lending_fUST_20250120
["ID","MTS","AMOUNT","RATE_DAILY","PERIOD"]
[349694164,1737379840717,-500.0,0.00021917,3]
[349694165,1737379840732,-526.89030574,0.00021917,3]
[349694166,1737379840742,-500.0,0.00021917,3]
[349694167,1737379840754,-508.33,0.00021917,3]
[349694168,1737379840763,-511.43,0.00021917,3]
[349694169,1737379840772,-294.98,0.00021917,3]
[349694170,1737379840782,-500.0,0.00021917,3]
[349694171,1737379840793,-500.0,0.00021917,2]
[349694173,1737379840802,-609.89642439,0.00021917,3]
[349694176,1737379840812,-516.10599631,0.00021917,3]
[349694178,1737379840823,-500.0,0.00021917,3]
[349694180,1737379840833,-500.0,0.00021917,3]
[349694182,1737379840842,-500.0,0.00021917,3]
[349694184,1737379840852,-903.96,0.00021917,3]
[349694186,1737379840862,-903.96,0.00021917,3]
[349694187,1737379840871,-595.98,0.00021917,3]
[349694188,1737379840881,-500.0,0.00021917,3]
[349694189,1737379840891,-501.59,0.00021917,3]
[349694190,1737379840901,-500.0,0.00021917,3]
[349694191,1737379840911,-500.0,0.00021917,3]
[349694192,1737379840921,-497.46182506,0.00021917,3]
[349694193,1737379840930,-500.0,0.00021917,3]
[349694194,1737379840940,-500.0,0.00021917,3]
[349694195,1737379840949,-500.0,0.00021917,3]
[349694196,1737379840959,-500.0,0.00021917,3]
[349694197,1737379840969,-500.0,0.00021917,3]
[349694198,1737379840986,-500.0,0.00021917,3]
[349694199,1737379840996,-500.0,0.00021917,3]
[349694200,1737379841006,-598.00440132,0.00021917,3]
[349694201,1737379841016,-500.0,0.00021917,3]
[349694202,1737379841025,-185.54,0.00021917,3]
[349694203,1737379841035,-500.0,0.00021917,3]
[349694204,1737379841044,-432.59,0.00021917,3]
[349694205,1737379841055,-500.0,0.00021917,3]
[349694206,1737379841070,-500.0,0.00021917,3]
[349694207,1737379841081,-260.06124234,0.00021917,3]
[349694208,1737379841092,-500.0,0.00021917,3]
[349694209,1737379841103,-311.81852643,0.00021917,3]
[349694210,1737379841113,-615.58780601,0.00021917,3]
[349694211,1737379841125,-500.0,0.00021917,3]
[349694212,1737379841135,-489.54132696,0.00021917,3]
[349694213,1737379841145,-29028.5306038,0.0002199,7]
[349694214,1737379841163,-500.0,0.00021917,3]
[349694215,1737379841173,-6109.65369792,0.0002199,7]
[349694253,1737379844518,-5394.06780819,0.0002178,2]
[349694256,1737379844529,-321.6,0.0002178,2]
[349694258,1737379844541,-2800.22038791,0.0002178,2]
[349694260,1737379844551,-612.5,0.00021917,3]
[349694262,1737379844560,-500.0,0.00021917,3]
[349694264,1737379844570,-8815.32906024,0.0002199,7]
[349694266,1737379844582,-903.96,0.00021998,3]
[349694268,1737379844591,-3257.8683209,0.00022,2]
[349694270,1737379844601,-3257.8683209,0.00022,2]
[349694272,1737379844610,-3257.8683209,0.00022,2]
[349694274,1737379844619,-205.82294884,0.00022007,3]
[349694277,1737379844628,-500.0,0.00022053,3]
[349694279,1737379844638,-500.0,0.00022053,3]
[349694281,1737379844647,-903.96,0.00022053,3]
[349694283,1737379844657,-192.19,0.00022054,3]
[349694285,1737379844666,-500.0,0.00022054,3]
[349694287,1737379844675,-500.0,0.00022054,3]
[349694289,1737379844685,-579.16,0.00022054,3]
[349694291,1737379844694,-500.0,0.00022054,2]
[349694293,1737379844703,-500.0,0.00022054,3]
[349694295,1737379844712,-500.0,0.00022054,3]
[349694298,1737379844725,-595.98,0.00022054,3]
[349694300,1737379844734,-500.0,0.00022054,3]
[349694302,1737379844745,-351.41,0.00022054,3]
[349694304,1737379844754,-500.0,0.00022054,3]
[349694306,1737379844763,-500.0,0.00022054,3]
[349694308,1737379844772,-500.0,0.00022054,3]
[349694309,1737379844782,-500.0,0.00022054,3]
[349694312,1737379844791,-500.0,0.00022054,3]
[349694314,1737379844801,-500.0,0.00022054,3]
[349694316,1737379844810,-500.0,0.00022054,3]
[349694318,1737379844821,-500.0,0.00022054,3]
[349694320,1737379844830,-530.17,0.00022054,3]
[349694322,1737379844840,-500.0,0.00022054,3]
[349694324,1737379844849,-500.0,0.00022054,3]
[349694326,1737379844858,-154.4746844,0.00022055,2]
[349694328,1737379844867,-3257.8683209,0.00022089,2]
[349694330,1737379844877,-205.82294884,0.00022114,3]
[349694332,1737379844887,-500.0,0.0002219,3]
[349694334,1737379844896,-500.0,0.0002219,3]
[349694336,1737379844906,-225.85,0.00022191,3]
[349694338,1737379844915,-500.0,0.00022191,2]
[349694340,1737379844924,-270.29,0.00022191,3]
[349694342,1737379844933,-178.85,0.00022191,3]
[349694344,1737379844944,-595.98,0.00022191,3]
[349694347,1737379844956,-500.0,0.00022191,3]
[349694349,1737379844968,-500.0,0.00022191,3]
[349694351,1737379844984,-500.0,0.00022191,3]
[349694354,1737379844996,-500.0,0.00022191,3]
[349694356,1737379845008,-500.0,0.00022191,3]
[349694358,1737379845019,-500.0,0.00022191,3]
[349694360,1737379845030,-568.93,0.00022191,3]
[349694362,1737379845040,-500.0,0.00022191,3]
[349694364,1737379845050,-333.77839119,0.00022191,3]
[349694367,1737379845060,-500.0,0.00022191,3]
[349694369,1737379845073,-500.0,0.00022191,3]
[349694371,1737379845084,-205.82294884,0.00022221,3]
[349694373,1737379845095,-903.96,0.00022327,3]
[349694376,1737379845105,-595.98,0.00022328,3]
[349694378,1737379845117,-500.0,0.00022328,3]
[349694380,1737379845128,-500.0,0.00022328,3]
[349694382,1737379845139,-500.0,0.00022328,3]
[349694384,1737379845150,-500.0,0.00022328,3]
[349694387,1737379845162,-500.0,0.00022328,3]
[349694389,1737379845173,-387.25,0.00022328,3]
[349694391,1737379845184,-500.0,0.00022328,3]
[349694393,1737379845194,-500.0,0.00022328,3]
[349694395,1737379845206,-500.0,0.00022328,3]
[349694398,1737379845217,-205.82294884,0.00022329,3]
[349694400,1737379845231,-205.82294884,0.00022436,3]
[349694402,1737379845242,-500.0,0.00022464,3]
[349694404,1737379845254,-500.0,0.00022464,3]
[349694407,1737379845266,-595.98,0.00022465,3]
[349694409,1737379845280,-500.0,0.00022465,3]
[349694411,1737379845290,-349.49,0.00022465,3]
[349694413,1737379845301,-500.0,0.00022465,3]
[349694415,1737379845312,-500.0,0.00022465,3]
[349694417,1737379845323,-500.0,0.00022465,3]
[349694420,1737379845333,-500.0,0.00022465,3]
[349694422,1737379845343,-500.0,0.00022465,3]
[349694424,1737379845354,-500.0,0.00022465,3]
[349694426,1737379845364,-420.0,0.00022468,2]
[349694428,1737379845375,-238.72330215,0.00022484,2]
[349694430,1737379845386,-205.82294884,0.00022543,3]
[349694433,1737379845397,-595.98,0.00022602,3]
[349694435,1737379845407,-380.71,0.00022602,3]
[349694437,1737379845418,-568.16,0.00022602,3]
[349694439,1737379845429,-500.0,0.00022602,3]
[349694441,1737379845439,-500.0,0.00022602,3]
[349694443,1737379845449,-291.65,0.00022602,3]
[349694445,1737379845459,-500.0,0.00022602,3]
[349694447,1737379845469,-205.82294884,0.0002265,3]
[349694450,1737379845483,-655.68,0.000227,2]
[349694452,1737379845494,-1008.26665474,0.000227,5]
[349694454,1737379845504,-595.98,0.00022739,3]
[349694456,1737379845514,-500.0,0.00022739,3]
[349694458,1737379845524,-500.0,0.00022739,3]
[349694460,1737379845535,-500.0,0.00022739,3]
[349694463,1737379845546,-205.82294884,0.00022757,3]
[349694465,1737379845556,-166.261308,0.00022759,2]
[349694467,1737379845567,-238.72330215,0.00022818,2]
[349694469,1737379845579,-205.82294884,0.00022864,3]
[349694471,1737379845589,-903.96,0.00022875,3]
[349694474,1737379845601,-595.98,0.00022876,3]
[349694476,1737379845612,-500.0,0.00022876,3]
[349694478,1737379845623,-500.0,0.00022876,3]
[349694480,1737379845634,-500.0,0.00022876,3]
[349694482,1737379845645,-10027.57812757,0.0002289,5]
[349694485,1737379845656,-205.82294884,0.00022971,3]
[349694487,1737379845668,-4090.03684168,0.00023,7]
[349694489,1737379845679,-1000.0,0.00023,23]
[349694492,1737379845691,-200.29925064,0.00023,2]
[349694494,1737379845702,-754.999999,0.00023,2]
[349694496,1737379845712,-595.98,0.00023013,3]
[349694498,1737379845725,-500.0,0.00023013,3]
[349694500,1737379845736,-292.81840751,0.00023013,3]
[349694502,1737379845747,-500.0,0.00023013,3]
[349694504,1737379845757,-584.061,0.0002302,2]
[349694506,1737379845766,-205.82294884,0.00023079,3]
[349694508,1737379845778,-500.0,0.00023149,3]
[349694510,1737379845788,-500.0,0.00023149,3]
[349694512,1737379845799,-595.98,0.0002315,3]
[349694515,1737379845809,-500.0,0.0002315,3]
[349694517,1737379845823,-500.0,0.0002315,3]
[349694519,1737379845835,-238.72330215,0.00023152,2]
[349694521,1737379845845,-205.82294884,0.00023186,3]
[349694524,1737379845857,-595.98,0.00023287,3]
[349694526,1737379845867,-500.0,0.00023287,3]
[349694529,1737379845877,-500.0,0.00023287,3]
[349694531,1737379845887,-205.82294884,0.00023293,3]
[349694533,1737379845897,-2616.0,0.00023328,7]
[349694535,1737379845907,-205.82294884,0.000234,3]
[349694537,1737379845918,-1587.602,0.00023416,2]
[349694539,1737379845928,-595.98,0.00023424,3]
[349694542,1737379845939,-500.0,0.00023424,3]
[349694544,1737379845950,-500.0,0.00023424,3]
[349694547,1737379845961,-238.72330215,0.00023486,2]
[349694550,1737379845971,-205.82294884,0.00023507,3]
[349694554,1737379845986,-903.96,0.00023535,3]
[349694557,1737379845996,-1200.0,0.00023536,2]
[349694560,1737379846006,-595.98,0.00023561,3]
[349694564,1737379846018,-500.0,0.00023561,3]
[349694567,1737379846028,-500.0,0.00023561,3]
[349694570,1737379846038,-300.0,0.000236,10]
[349694573,1737379846049,-205.82294884,0.00023614,3]
[349694576,1737379846059,-595.98,0.00023698,3]
[349694580,1737379846070,-500.0,0.00023698,3]
[349694583,1737379846080,-205.82294884,0.00023721,3]
[349694586,1737379846091,-1061.0835482,0.00023799,12]
[349694590,1737379846101,-1061.0623174,0.00023799,12]
[349694593,1737379846112,-238.72330215,0.00023819,2]
[349694596,1737379846123,-205.82294884,0.00023829,3]
[349694599,1737379846133,-595.98,0.00023835,3]
[349694601,1737379846144,-291.43,0.00023835,3]
[349694603,1737379846154,-500.0,0.00023895,3]
[349694605,1737379846165,-500.0,0.00023895,3]
[349694608,1737379846175,-292.20845045,0.000239,2]
[349694610,1737379846186,-205.82294884,0.00023936,3]
[349694612,1737379846196,-191.5997569,0.00023958,2]
[349694614,1737379846207,-595.98,0.00023972,3]
[349694616,1737379846218,-22559.35537615,0.00023987,2]
[349694618,1737379846235,-500.0,0.00023999,3]
[349694621,1737379846245,-500.0,0.00023999,3]
[349694623,1737379846255,-500.0,0.00023999,3]
[349694625,1737379846265,-500.0,0.00023999,3]
[349694627,1737379846275,-500.0,0.00023999,3]
[349694629,1737379846285,-500.0,0.00023999,3]
[349694631,1737379846296,-500.0,0.00023999,3]
[349694633,1737379846306,-500.0,0.00023999,3]
[349694635,1737379846317,-903.96,0.00023999,3]
[349694637,1737379846328,-903.96,0.00023999,3]
[349694640,1737379846339,-903.96,0.00023999,3]
[349694642,1737379846349,-903.96,0.00023999,3]
[349694658,1737379846495,-903.96,0.00023999,3]
[349694660,1737379846510,-903.96,0.00023999,3]
[349694662,1737379846522,-903.96,0.00023999,3]
[349694664,1737379846532,-279.47793054,0.00023999,2]
[349694666,1737379846541,-8731.16739826,0.00023999,5]
[349694669,1737379846551,-37785.17557135,0.00024,5]
[349694671,1737379846560,-500.0,0.00024,2]
[349694673,1737379846570,-500.0,0.00024,7]
[349694675,1737379846580,-17330.0,0.00024,7]
[349694677,1737379846589,-1000.0,0.00024,24]
[349694679,1737379846599,-30000.0,0.00024,10]
[349694681,1737379846608,-29078.33359053,0.00024,10]
[349694682,1737379846617,-500.0,0.00024033,3]
[349694684,1737379846627,-500.0,0.00024033,3]
[349694686,1737379846637,-500.0,0.00024033,3]
[349694689,1737379846647,-500.0,0.00024033,3]
[349694690,1737379846656,-500.0,0.00024034,3]
[349694691,1737379846666,-500.0,0.00024034,3]
[349694692,1737379846675,-903.96,0.00024034,3]
[349694693,1737379846685,-5000.0,0.00024035,2]
[349694694,1737379846694,-2935.27488222,0.00024035,2]
[349694695,1737379846708,-2064.72511778,0.00024035,2]
[349694696,1737379846718,-5000.0,0.00024035,2]
[349694697,1737379846735,-5000.0,0.00024035,2]
[349694698,1737379846745,-5000.0,0.00024035,2]
[349694699,1737379846755,-1061.0835482,0.00024037,12]
[349694700,1737379846764,-1061.0623174,0.00024037,12]
[349694701,1737379846774,-205.82294884,0.00024043,3]
[349694702,1737379846784,-402.81167011,0.0002405,2]
[349694703,1737379846793,-151.0,0.0002406,7]
[349694704,1737379846803,-500.0,0.00024097,3]
[349694705,1737379846814,-500.0,0.00024097,3]
[349694706,1737379846824,-154.24,0.000241,31]
[349694707,1737379846833,-154.24,0.000241,31]
[349694709,1737379846843,-154.24,0.000241,31]
[349694711,1737379846852,-154.24,0.000241,31]
[349694713,1737379846861,-154.24,0.000241,31]
[349694715,1737379846870,-154.24,0.000241,31]
[349694717,1737379846879,-154.24,0.000241,31]
[349694719,1737379846888,-595.98,0.00024109,3]
[349694721,1737379846898,-903.96,0.00024145,3]
[349694723,1737379846907,-5049.49046286,0.00024146,2]
[349694725,1737379846917,-205.82294884,0.0002415,3]
[349694727,1737379846926,-238.72330215,0.00024153,2]
[349694729,1737379846936,-151.0,0.00024199,2]
[349694731,1737379846945,-2000.0,0.000242,2]
[349694733,1737379846955,-543.0,0.000242,2]
[349694735,1737379846966,-953.43793494,0.00024243,14]
[349694737,1737379846979,-500.0,0.00024243,14]
[349694739,1737379846989,-500.0,0.00024245,3]
[349694741,1737379846999,-500.0,0.00024245,3]
[349694743,1737379847008,-584.9008822,0.00024245,2]
[349694745,1737379847018,-176.70488688,0.00024245,2]
[349694747,1737379847028,-151.0,0.00024246,7]
[349694749,1737379847038,-151.0,0.00024246,7]
[349694751,1737379847048,-151.0,0.00024246,7]
[349694753,1737379847058,-152.342217,0.00024246,7]
[349694755,1737379847067,-151.0,0.00024246,7]
[349694757,1737379847077,-151.0,0.00024246,7]
[349694759,1737379847086,-151.0,0.00024246,7]
[349694761,1737379847096,-151.0,0.00024246,7]
[349694763,1737379847106,-500.0,0.00024246,3]
[349694765,1737379847115,-500.0,0.00024246,3]
[349694767,1737379847125,-500.0,0.00024246,3]
[349694769,1737379847134,-500.0,0.00024246,3]
[349694771,1737379847144,-500.0,0.00024246,3]
[349694773,1737379847153,-500.0,0.00024246,3]
[349694775,1737379847163,-191.06873037,0.00024246,3]
[349694777,1737379847173,-151.0,0.00024246,7]
[349694779,1737379847182,-151.0,0.00024246,7]
[349694781,1737379847192,-151.0,0.00024246,7]
[349694783,1737379847202,-151.0,0.00024246,7]
[349694785,1737379847211,-151.0,0.00024246,7]
[349694787,1737379847220,-151.0,0.00024246,7]
[349694790,1737379847234,-223.771455,0.00024246,7]
[349694792,1737379847244,-151.0,0.00024246,7]
[349694794,1737379847253,-151.0,0.00024246,7]
[349694796,1737379847263,-151.0,0.00024246,7]
[349694798,1737379847274,-151.0,0.00024246,7]
[349694800,1737379847283,-292.62195,0.00024246,7]
[349694802,1737379847293,-500.0,0.00024246,3]
[349694804,1737379847302,-500.0,0.00024246,3]
[349694806,1737379847311,-500.0,0.00024246,3]
[349694808,1737379847320,-500.0,0.00024246,3]
[349694810,1737379847330,-315.61908753,0.00024246,3]
[349694812,1737379847339,-151.0,0.00024246,7]
[349694814,1737379847349,-151.0,0.00024246,7]
[349694816,1737379847359,-151.0,0.00024246,7]
[349694818,1737379847369,-903.96,0.00024246,3]
[349694820,1737379847378,-903.96,0.00024246,3]
[349694823,1737379847388,-903.96,0.00024246,3]
[349694825,1737379847397,-903.96,0.00024246,3]
[349694827,1737379847407,-903.96,0.00024246,3]
[349694829,1737379847417,-903.96,0.00024246,3]
[349694831,1737379847428,-903.96,0.00024246,3]
[349694833,1737379847438,-904.03177452,0.00024246,3]
[349694835,1737379847448,-595.98,0.00024246,3]
[349694837,1737379847457,-151.0,0.00024246,7]
[349694839,1737379847466,-151.0,0.00024246,7]
[349694841,1737379847478,-151.0,0.00024246,7]
[349694843,1737379847487,-151.0,0.00024246,7]
[349694845,1737379847496,-151.0,0.00024246,7]
[349694847,1737379847505,-151.0,0.00024246,7]
[349694849,1737379847514,-151.0,0.00024246,7]
[349694851,1737379847523,-151.0,0.00024246,7]
[349694853,1737379847532,-151.0,0.00024246,7]
[349694855,1737379847542,-151.0,0.00024246,7]
[349694857,1737379847551,-151.0,0.00024246,7]
[349694859,1737379847561,-151.0,0.00024246,7]
[349694861,1737379847570,-202.717778,0.00024246,7]
[349694863,1737379847579,-247.835586,0.00024246,7]
[349694865,1737379847587,-151.0,0.00024246,7]
[349694867,1737379847596,-151.0,0.00024246,7]
[349694869,1737379847605,-284.513848,0.00024246,7]
[349694871,1737379847614,-151.0,0.00024246,7]
[349694873,1737379847623,-151.0,0.00024246,7]
[349694875,1737379847632,-151.0,0.00024246,7]
[349694877,1737379847641,-151.0,0.00024246,7]
[349694879,1737379847651,-151.0,0.00024246,7]
[349694881,1737379847660,-151.0,0.00024246,7]
[349694883,1737379847669,-151.0,0.00024246,7]
[349694885,1737379847678,-151.0,0.00024246,7]
[349694887,1737379847687,-151.0,0.00024246,7]
[349694889,1737379847696,-153.700733,0.00024246,7]
[349694891,1737379847706,-151.0,0.00024246,7]
[349694893,1737379847715,-151.0,0.00024246,7]
[349694895,1737379847728,-151.0,0.00024246,7]
[349694897,1737379847737,-151.0,0.00024246,7]
[349694899,1737379847750,-151.0,0.00024246,7]
[349694901,1737379847760,-293.155478,0.00024246,7]
[349694903,1737379847769,-151.0,0.00024246,7]
[349694905,1737379847780,-151.0,0.00024246,7]
[349694907,1737379847789,-151.0,0.00024246,7]
[349694909,1737379847798,-151.0,0.00024246,7]
[349694911,1737379847807,-151.0,0.00024246,7]
[349694913,1737379847818,-211.913316,0.00024246,7]
[349694915,1737379847828,-151.291614,0.00024246,7]
[349694917,1737379847837,-151.0,0.00024246,7]
[349694919,1737379847847,-151.0,0.00024246,7]
[349694921,1737379847856,-151.0,0.00024246,7]
[349694923,1737379847865,-151.0,0.00024246,7]
[349694924,1737379847875,-151.0,0.00024246,7]
[349694926,1737379847884,-165.291176,0.00024246,7]
[349694928,1737379847893,-151.0,0.00024246,7]
[349694930,1737379847903,-151.0,0.00024246,7]
[349694932,1737379847912,-151.0,0.00024246,7]
[349694934,1737379847923,-151.0,0.00024246,7]
[349694936,1737379847932,-4528850.29030834,0.00024246,61]
[349694939,1737379847946,-504.62800191,0.00024246,61]
[349694948,1737379848040,-500.0,0.00022602,3]
[349694950,1737379848049,-500.0,0.00022739,3]
[349694952,1737379848059,-500.0,0.00022876,3]
[349694954,1737379848069,-289.03694766,0.00023013,3]
[349695514,1737379861248,166.460449,0.00013973,2]
[349695517,1737380764707,166.511124,0.00013973,2]
[349695561,1737381032894,-303.14549832,0.00018252,2]
[349695562,1737381032904,-303.14549832,0.00018436,2]
[349695563,1737381032914,-563.033,0.0002,7]
[349695564,1737381032923,-600.0,0.0002,2]
[349695565,1737381032932,-600.0,0.00021,3]
[349695566,1737381032942,-206.65900166,0.000219,3]
[349695567,1737381032952,-164.831,0.00021916,2]
[349695568,1737381032961,-300.0,0.00021916,2]
[349695569,1737381032970,-500.66176876,0.00021917,3]
[349695570,1737381032980,-500.0,0.00021917,3]
[349695571,1737381032989,-468.25779566,0.00021917,3]
[349695572,1737381032998,-500.0,0.00021917,3]
[349695573,1737381033008,-515.40166202,0.00021917,3]
[349695574,1737381033017,-500.0,0.00021917,3]
[349695575,1737381033026,-500.0,0.00021917,3]
[349695576,1737381033036,-500.0,0.00021917,3]
[349695577,1737381033046,-518.48413427,0.00021917,3]
[349695578,1737381033055,-500.0,0.00021917,3]
[349695579,1737381033064,-514.15261162,0.00021917,3]
[349695580,1737381033074,-500.0,0.00021917,3]
[349695582,1737381033084,-500.0,0.00021917,3]
[349695583,1737381033095,-500.0,0.00021917,3]
[349695585,1737381033107,-500.0,0.00021917,3]
[349695586,1737381033117,-500.0,0.00021917,3]
[349695588,1737381033127,-528.48245023,0.00021917,3]
[349695590,1737381033137,-500.0,0.00021917,3]
[349695592,1737381033147,-500.0,0.00021917,3]
[349695594,1737381033157,-272.26056296,0.00021917,3]
[349695596,1737381033166,-513.56590105,0.00021917,3]
[349695598,1737381033175,-500.0,0.00021917,3]
[349695600,1737381033185,-500.0,0.00021917,3]
[349695602,1737381033195,-500.0,0.00021917,3]
[349695604,1737381033206,-498.10414478,0.00021917,3]
[349695606,1737381033215,-500.0,0.00021917,3]
[349695608,1737381033225,-500.0,0.00021917,3]
[349695610,1737381033235,-500.0,0.00021917,3]
[349695612,1737381033245,-500.0,0.00021917,3]
[349695614,1737381033254,-500.0,0.00021917,3]
[349695616,1737381033263,-500.0,0.00021917,3]
[349695618,1737381033273,-256.18645909,0.00021917,3]
[349695620,1737381033283,-500.0,0.00021917,3]
[349695622,1737381033292,-500.0,0.00021917,3]
[349695624,1737381033302,-500.0,0.00021917,3]
[349695626,1737381033311,-500.0,0.00021917,3]
[349695628,1737381033320,-500.0,0.00021917,3]
[349695630,1737381033331,-500.0,0.00021917,3]
[349695632,1737381033343,-500.0,0.00021917,3]
[349695634,1737381033353,-500.0,0.00021917,3]
[349695636,1737381033362,-274.23148004,0.00021917,3]
[349695638,1737381033371,-500.0,0.00021917,3]
[349695639,1737381033380,-500.0,0.00021917,3]
[349695640,1737381033390,-500.0,0.00021917,3]
[349695641,1737381033399,-500.0,0.00021917,3]
[349695642,1737381033409,-500.0,0.00021917,3]
[349695643,1737381033418,-500.0,0.00021917,3]
[349695644,1737381033429,-500.0,0.00021917,3]
[349695645,1737381033439,-500.0,0.00021917,3]
[349695646,1737381033450,-500.0,0.00021917,3]
[349695647,1737381033460,-637.1,0.00021917,3]
[349695648,1737381033470,-529.17843527,0.00021917,3]
[349695649,1737381033480,-500.0,0.00021917,3]
[349695650,1737381033490,-500.0,0.00021917,3]
[349695651,1737381033500,-297.58400498,0.00021917,3]
[349695652,1737381033510,-500.0,0.00021917,3]
[349695653,1737381033519,-500.0,0.00021917,3]
[349695654,1737381033528,-500.0,0.00021917,3]
[349695655,1737381033538,-500.0,0.00021917,3]
[349695656,1737381033547,-543.16,0.00021917,3]
[349695657,1737381033557,-500.0,0.00021917,2]
[349695658,1737381033567,-500.0,0.00021917,3]
[349695659,1737381033576,-640.11,0.00021917,3]
[349695660,1737381033586,-500.0,0.00021917,3]
[349695661,1737381033595,-500.0,0.00021917,3]
[349695662,1737381033604,-500.0,0.00021917,3]
[349695663,1737381033614,-500.0,0.00021917,3]
[349695664,1737381033623,-162.18838518,0.00021917,3]
[349695665,1737381033633,-500.0,0.00021917,3]
[349695666,1737381033643,-500.0,0.00021917,3]
[349695667,1737381033653,-500.0,0.00021917,3]
[349695668,1737381033663,-500.0,0.00021917,3]
[349695669,1737381033672,-500.0,0.00021917,3]
[349695670,1737381033681,-500.0,0.00021917,3]
[349695671,1737381033691,-547.29,0.00021917,3]
[349695672,1737381033703,-500.0,0.00021917,3]
[349695673,1737381033713,-500.0,0.00021917,3]
[349695674,1737381033722,-500.0,0.00021917,3]
[349695675,1737381033731,-500.0,0.00021917,3]
[349695676,1737381033741,-500.0,0.00021917,3]
[349695677,1737381033751,-515.36453657,0.00021917,3]
[349695678,1737381033762,-500.0,0.00021917,3]
[349695679,1737381033772,-422.38571152,0.00021917,3]
[349695680,1737381033782,-500.0,0.00021917,3]
[349695681,1737381033791,-500.0,0.00021917,3]
[349695682,1737381033801,-500.0,0.00021917,3]
[349695683,1737381033810,-500.0,0.00021917,3]
[349695684,1737381033820,-500.0,0.00021917,3]
[349695685,1737381033829,-500.0,0.00021917,3]
[349695686,1737381033838,-500.0,0.00021917,3]
[349695687,1737381033848,-500.0,0.00021917,3]
[349695688,1737381033858,-500.0,0.00021917,3]
[349695689,1737381033867,-500.0,0.00021917,3]
[349695690,1737381033876,-500.0,0.00021917,3]
[349695691,1737381033886,-500.0,0.00021917,3]
[349695692,1737381033895,-500.0,0.00021917,3]
[349695693,1737381033904,-500.0,0.00021917,3]
[349695694,1737381033914,-500.0,0.00021917,3]
[349695695,1737381033924,-500.0,0.00021917,3]
[349695696,1737381033933,-500.0,0.00021917,3]
[349695697,1737381033942,-500.0,0.00021917,3]
[349695698,1737381033954,-500.0,0.00021917,3]
[349695699,1737381033963,-500.0,0.00021917,3]
[349695700,1737381033972,-625.47877551,0.00021917,3]
[349695701,1737381033981,-500.0,0.00021917,3]
[349695702,1737381033990,-500.0,0.00021917,3]
[349695703,1737381034000,-500.0,0.00021917,3]
[349695704,1737381034009,-500.0,0.00021917,3]
[349695705,1737381034018,-500.0,0.00021917,3]
[349695706,1737381034028,-500.0,0.00021917,3]
[349695707,1737381034037,-500.0,0.00021917,3]
[349695708,1737381034047,-500.0,0.00021917,3]
[349695709,1737381034057,-500.0,0.00021917,3]
[349695710,1737381034066,-500.0,0.00021917,3]
[349695711,1737381034076,-602.56162415,0.00021917,3]
[349695712,1737381034086,-500.0,0.00021917,3]
[349695713,1737381034099,-500.0,0.00021917,3]
[349695714,1737381034109,-500.11280654,0.00021917,3]
[349695715,1737381034119,-500.0,0.00021917,3]
[349695716,1737381034128,-500.0,0.00021917,3]